{"text_format":"1","workbook":"xlsx","n_sheets":5,"sheets":["Меню","Заявка на договор ТП юр лицо","Заявка на договор ТП для ИП","Заявка на договор ТП физлицо","Списки"],"not_rendered":{"charts":0,"images":0,"macros":0,"external_links":0,"defined_names":5,"comments":0,"pivot_tables":0},"unopened":[],"bounds":{"document_bytes":16777216,"sheet_cells":100000,"rows_first":2000,"rows_last":500,"rows_between":2000,"halvings":0,"cell_chars":16384,"cell_head_chars":4096},"cells_cut":0,"cells_raw":0,"read":"whole","date_system":"1900"}

{"sheet":"Меню","index":0,"n_rows":9,"n_cols":2,"rows_kept":9,"cut":false,"hidden":false,"merged":[]}
[]
[null,"Выберите нужный вариант:"]
[null,"Заключение Договора о подключении к системе водоотведения ООО \"ТСК Мосэнерго\""]
[null,"Форма заявки на подключение к системеводоотведения ООО \"ТСК Мосэнерго\" в случае если Вы:"]
[null,"Юридическое лицо"]
[]
[null,"Индивидуальный предприниматель"]
[]
[null,"Физическое лицо"]

{"sheet":"Заявка на договор ТП юр лицо","index":1,"n_rows":165,"n_cols":12,"rows_kept":165,"cut":false,"hidden":false,"merged":[[2,8,2,10],[9,1,9,10],[57,9,57,10],[55,9,55,10],[93,1,93,10],[59,2,59,3],[59,6,59,7],[59,9,59,10],[60,2,60,3],[60,6,60,7],[60,9,60,10],[64,2,64,3],[64,6,64,7],[64,9,64,10],[4,1,4,10],[5,1,5,10],[7,1,7,10],[10,1,10,10],[11,1,11,10],[13,1,14,1],[13,2,14,2],[13,4,14,5],[13,6,14,6],[13,7,14,9],[170,2,170,9],[147,2,147,9],[95,1,98,10],[105,2,105,3],[105,6,105,8],[132,1,132,10],[136,2,136,9],[144,2,144,9],[145,2,145,9],[146,2,146,9],[142,2,142,9],[154,2,154,9],[155,2,155,9],[111,1,111,10],[124,1,124,10],[157,2,157,9],[148,2,148,9],[149,2,149,9],[150,2,150,9],[151,2,151,9],[100,2,100,10],[167,2,167,9],[168,2,168,9],[169,2,169,9],[19,0,21,0],[163,2,163,3],[163,9,163,10],[91,1,91,2],[91,4,91,10],[27,0,28,0],[109,1,109,2],[113,1,116,10],[120,1,122,10],[126,1,130,10],[162,9,162,10],[88,1,88,3],[88,9,88,10],[50,2,50,10],[134,2,134,9],[152,2,152,9],[153,2,153,9],[138,2,138,9],[143,2,143,9],[67,2,67,3],[67,6,67,7],[67,9,67,10],[159,2,159,9],[66,2,66,3],[166,2,166,9],[27,11,28,11],[81,1,86,10],[69,1,69,10],[32,2,32,4],[32,6,32,10],[44,2,44,5],[44,7,44,10],[48,2,48,10],[30,7,30,8],[73,1,75,10],[54,1,54,10],[65,2,65,3],[65,6,65,7],[65,9,65,10],[161,2,161,9],[156,2,156,9],[158,2,158,9],[66,6,66,7],[66,9,66,10],[46,2,46,10],[40,2,40,4],[40,7,40,10],[36,2,36,10],[38,6,38,10],[26,2,26,10],[27,9,27,10],[38,2,38,4],[28,2,28,10],[30,2,30,3],[34,2,34,4],[34,6,34,10],[16,11,18,11],[18,2,18,10],[19,2,19,4],[19,6,19,10],[19,11,21,11],[20,3,20,4],[20,6,20,7],[21,9,21,10],[25,9,25,10],[22,2,22,7],[22,9,22,10],[24,2,24,7],[24,9,24,10],[16,1,16,10]]}
[]
[null,"НА БЛАНКЕ ОРГАНИЗАЦИИ",null,null,null,null,null,null,null,null,null,"Комментарии для заполнения:"]
[null,null,null,null,null,null,null,null,"Генеральному директору\nООО \"ТСК Мосэнерго\" \nД.В. Горяинову"]
[]
[null,"ЗАЯВКА НА ПОДКЛЮЧЕНИЕ К СИСТЕМЕ ВОДООТВЕДЕНИЯ ООО \"ТСК МОСЭНЕРГО\""]
[null,"(для юридического лица)"]
[]
[null,"Уважаемый Денис Викторович!"]
[]
[null,"Прошу Вас заключить договор о подключении к системе водоотведения ООО \"ТСК Мосэнерго\" объекта капитального строительства: "]
[]
[null,"(наименование объекта)"]
[null,"в связи с:"]
[null,"необходимостью подключения нового объекта",null,null,"увеличением нагрузки подключаемого объекта",null,null,"реконструкцией или модернизацией объекта без увеличения нагрузки ",null,null,null,"Необходимо выбрать нужный вариант"]
[]
[]
[null,"1. Сведения о заявителе:"]
[]
[null,"Полное наименование организации"]
[]
[null,"Запись о включении в ЕГРЮЛ (ОГРН)","от",null,null,"№"]
[]
[null,"Ф.И.О. руководителя"]
[]
[null,"Должность руководителя"]
[]
[null,"Местонахождение","Индекс, город, улица, дом, строение, корпус, владение"]
[]
[null,"Почтовый адрес","Индекс, город, улица, дом, строение, корпус, владение"]
[]
[null,"ИНН",null,null,"КПП",null,"ОКПО"]
[]
[null,"р/с",null,null,null,"в"]
[]
[null,"к/с",null,null,null,"БИК"]
[]
[null,"Контактное лицо (Ф.И.О.)"]
[]
[null,"Контактный телефон организации",null,null,null,"Факс"]
[]
[null,"Контактный телефон мобильный",null,null,null,null,"e-mail"]
[]
[null,"2. Местонахождение подключаемого объекта"]
[]
[null,"Город",null,null,null,null,"Район",null,null,null,null,"Необходимо заполнить поля в соответствии с правооустанавливающими документами"]
[]
[null,"Область"]
[]
[null,"Населённый пункт"]
[]
[null,"Улица"]
[]
[null,"Дом",null,null,"Владение",null,"Корпус",null,null,"Строение"]
[]
[null,"3. Технические параметры подключаемого объекта"]
[null,"3.1 Таблица нагрузок по видам потребления ",null,null,null,null,null,null,null,"поле не заполняется",null,"Таблица заполняется одна из двух представленных"]
[null,"(Заполняется одна из двух таблиц)"]
[null,"Для неподключенных строящихся (построенных) объектов:",null,null,null,null,null,null,null,"поле считается автоматически"]
[]
[null,"Наименование","Хозяйственно-бытовые нужды",null,"Производственные нужды","Прочее","Всего"]
[null,"Объем сточных вод, м3/сут",0,null,0,0,{"$f":"C61+E61+F61","v":0}]
[]
[null,"Для реконструируемых объектов:"]
[]
[null,"Наименование","Хозяйственно-бытовые нужды",null,"Производственные нужды","Прочее","Всего"]
[null,"Объем сточных вод существующий, м3/сут",0,null,0,0,{"$f":"C66+E66+F66","v":0}]
[null,"Объем сточных вод после реконструкции, м3/сут",0,null,0,0,{"$f":"C67+E67+F67","v":0},null,null,null,null,"Считается как разница между Тепловая нагрузка после реконструкции и Тепловая нагрузка существующая"]
[null,"Объем сточных вод дополнительный, м3/сут",{"$f":"C67-C66","v":0},null,{"$f":"E67-E66","v":0},{"$f":"F67-F66","v":0},{"$f":"G67-G66","v":0}]
[]
[null,"ВАЖНО: Если в рамках заявки на подключение планируется заключение договора о подключении нескольких объектов капитального строительства, то заявка должна содержать в себе таблицы нагрузок по каждому объекту."]
[]
[null,"3.2 Режимы водопотребления для подключаемого объекта:"]
[]
[null,null,null,null,null,null,null,null,null,null,null,"Необходимо выбрать из выпадающего списка"]
[]
[]
[null,"Если нужного варианта режима в списке нет, укажите собственный вариант"]
[]
[]
[null,"3.3 Расположение узла учета"]
[]
[]
[]
[]
[]
[]
[]
[]
[]
[null,"3.4 Назначение объекта:"]
[]
[null,null,null,null,{"$f":"IF(B92=Списки!B25,Списки!C25,IF(B92=Списки!B26,Списки!C26,IF(B92=Списки!B27,Списки!C27,IF(B92=Списки!B28,Списки!C28,IF(B92=Списки!B29,Списки!C29,IF(B92=Списки!B30,Списки!C30,IF(B92=Списки!B31,Списки!C31,IF(B92=Списки!B32,Списки!C32,IF(B92=Списки!B33,Списки!C33,IF(B92=Списки!B34,Списки!C34,IF(B92=Списки!B35,Списки!C35,IF(B92=Списки!B36,Списки!C36,IF(B92=Списки!B37,Списки!C37,IF(B92=Списки!B38,Списки!C38,IF(B92=Списки!B39,Списки!C39,IF(B92=Списки!B40,Списки!C40,IF(B92=Списки!B41,Списки!C41,IF(B92=Списки!B42,Списки!C42,IF(B92=Списки!B43,Списки!C43,IF(B92=Списки!B44,Списки!C44,IF(B92=Списки!B45,Списки!C45,IF(B92=Списки!B46,Списки!B46,IF(B92=Списки!B47,Списки!C47,IF(B92=Списки!B48,Списки!C48,))))))))))))))))))))))))","v":"-"},null,null,null,null,null,null,"Необходимо выбрать из выпадающего списка"]
[]
[null,"4. Правовые основания пользованием подключаемым объектом или земельным участком, на котором расположен подключаемый объект:"]
[]
[]
[]
[]
[]
[]
[null,"Кдастровый номер:"]
[]
[]
[null,"5. Технические условия (если ранее выдавались)"]
[]
[null,"от","дд.мм.гг",null,null,"№"]
[]
[null,"6. Планируемый срок ввода объекта в эксплуатацию:"]
[]
[null,"мм.гг"]
[]
[null,"7. Информация о границах земельного участка, на котором планируется осуществить строительство / реконструкцию / модернизацию подключаемого объекта"]
[]
[]
[]
[]
[]
[]
[null,"8. Информация о виде разрешенного используемого земельного участка:"]
[]
[]
[]
[]
[]
[null,"9. Информация о предельных параметрах разрешенного строительства / реконструкции / модернизации подключаемого объекта:"]
[]
[]
[]
[]
[]
[]
[]
[null,"10. О готовности проекта договора о подключении к системам водоснабжения прошу уведомить меня:",null,null,null,null,null,null,null,null,null,"Необходимо выбрать нужный вариант"]
[]
[null,"по телефону:"]
[]
[null,"по электронной почте по адресу:"]
[]
[null,null,"В случае если Заявитель будет недоступен по вышеуказанному контакту, Договор о подключении к системе водоотведения ООО \"ТСК Мосэнерго\" будет отправлен почтой по адресу, указанному в Разделе 1 настоящего Запроса"]
[]
[]
[null,null,"Перечень необходимых документов для выдачи Технических условий подключения:"]
[null,1,"Заверенные копии учредительных документов:"]
[null,"-","устав юридического лица (в том числе все изменения и дополнения к нему);"]
[null,"-","свидетельство о государственной регистрации юридического лица;"]
[null,"-","свидетельство о внесении записи в единый государственный реестр юридических лиц о юридическом лице (далее – ЕГРЮЛ), зарегистрированном до 01.07.2002, в случае создания контрагента до 01.07.2002;"]
[null,"-","свидетельство о постановке юридического лица на учет в налоговом органе;"]
[null,2,"Документы, подтверждающие полномочия лица, подписавшего запрос:"]
[null,"-","документ о назначении руководителя юридического лица;"]
[null,"-","приказ о вступлении в должность руководителя юридического лица;"]
[null,"-","доверенность представителя контрагента на право подписания запроса (в случае подписания запроса лицом, действующим на основании доверенности)."]
[null,3,"Нотариально заверенные копии правоустанавливающих документов на земельный участок (для правообладателя земельного участка)."]
[null,4,"Информация о границах земельного участка, на котором планируется осуществить строительство объекта капитального строительства или на котором расположен реконструируемый объект капитального строительства."]
[null,5,"Баланс водопотребления и водоотведения подключаемого объекта с указанием целей использования холодной воды и распределением объемов подключаемой нагрузки по целям использования, в том числе на пожаротушение, периодические нужды, заполнение и опорожнение бассейнов, прием поверхностных сточных вод."]
[null,6,"Сведения о составе и свойствах сточных вод, намеченных к отведению в централизованную систему водоотведения."]
[null,7,"Информация о разрешенном использовании земельного участка (градостроительный план земельного участка)."]
[null,8,"Информация о предельных параметрах разрешенного строительства (реконструкции) объектов капитального строительства, соответствующих данному земельному участку."]
[null,9,"Информация о планируемой величине необходимой подключаемой нагрузки (при наличии соответствующей информации). "]
[null,10,"Информация о планируемых сроках ввода в эксплуатацию объекта капитального строительства (при наличии соответствующей информации)."]
[null,11,"Топографическая карта земельного участка в масштабе 1:500 (для квартальной застройки 1:2000) в электронном виде в формате PDF с указанием всех наземных и подземных коммуникаций и сооружений, согласованная с эксплуатирующими организациями."]
[]
[]
[null,"Заявитель",null,null,null,null,null,null,null,"дд.мм.гг"]
[null,null,"ФИО",null,null,null,"Подпись",null,null,"Дата"]
[null,"М.П."]

{"sheet":"Заявка на договор ТП для ИП","index":2,"n_rows":164,"n_cols":12,"rows_kept":164,"cut":false,"hidden":false,"merged":[[160,2,160,9],[161,9,161,10],[162,2,162,3],[162,9,162,10],[63,2,63,3],[63,6,63,7],[63,9,63,10],[68,1,68,10],[72,1,74,10],[80,1,85,10],[87,1,87,3],[87,9,87,10],[90,1,90,2],[90,4,90,10],[64,2,64,3],[64,6,64,7],[64,9,64,10],[65,2,65,3],[65,6,65,7],[65,9,65,10],[66,2,66,3],[66,6,66,7],[66,9,66,10],[155,2,155,9],[157,2,157,9],[158,2,158,9],[92,1,92,10],[94,1,97,10],[99,2,99,10],[104,2,104,3],[104,6,104,8],[108,1,108,2],[110,1,110,10],[112,1,115,10],[119,1,121,10],[133,2,133,9],[135,2,135,9],[142,2,142,9],[143,2,143,9],[144,2,144,9],[54,9,54,10],[56,9,56,10],[58,2,58,3],[58,6,58,7],[58,9,58,10],[59,2,59,3],[59,6,59,7],[59,9,59,10],[156,2,156,9],[154,2,154,9],[137,2,137,9],[141,2,141,9],[145,2,145,9],[146,2,146,9],[147,2,147,9],[148,2,148,9],[149,2,149,9],[131,1,131,10],[123,1,123,10],[125,1,129,10],[150,2,150,9],[151,2,151,9],[152,2,152,9],[153,2,153,9],[47,2,47,10],[49,2,49,10],[53,1,53,10],[39,2,39,4],[39,7,39,10],[43,2,43,5],[43,7,43,10],[45,2,45,10],[31,2,31,4],[31,6,31,10],[33,2,33,4],[33,6,33,10],[35,2,35,10],[37,2,37,4],[37,6,37,10],[26,0,27,0],[26,9,26,10],[26,11,27,11],[27,2,27,10],[29,2,29,3],[29,7,29,8],[21,2,21,7],[21,9,21,10],[23,2,23,7],[23,9,23,10],[24,9,24,10],[25,2,25,10],[15,11,17,11],[17,2,17,10],[18,0,20,0],[18,2,18,4],[18,6,18,10],[18,11,20,11],[19,3,19,4],[19,6,19,7],[20,9,20,10],[1,8,1,10],[8,1,8,10],[10,1,10,10],[12,1,13,1],[12,2,13,2],[12,4,13,5],[12,6,13,6],[12,7,13,9],[15,1,15,10],[3,1,3,10],[4,1,4,10],[6,1,6,10],[9,1,9,10]]}
[]
[null,null,null,null,null,null,null,null,"Генеральному директору\nООО \"ТСК Мосэнерго\" \nД.В. Горяинову",null,null,"Комментарии для заполнения:"]
[]
[null,"ЗАЯВКА НА ПОДКЛЮЧЕНИЕ К СИСТЕМЕ ВОДООТВЕДЕНИЯ ООО \"ТСК МОСЭНЕРГО\""]
[null,"(для индивидуального предпринимателя)"]
[]
[null,"Уважаемый Денис Викторович!"]
[]
[null,"Прошу Вас заключить договор о подключении к системе водоотведения ООО \"ТСК Мосэнерго\" объекта капитального строительства: "]
[]
[null,"(наименование объекта)"]
[null,"в связи с:"]
[null,"необходимостью подключения нового объекта",null,null,"увеличением нагрузки подключаемого объекта",null,null,"реконструкцией или модернизацией объекта без увеличениянагрузки ",null,null,null,"Необходимо выбрать нужный вариант"]
[]
[]
[null,"1. Сведения о заявителе:"]
[]
[null,"Полное наименование организации"]
[]
[null,"Запись о включении в ЕГРИП (ОГРНИП)","от",null,null,"№"]
[]
[null,"Ф.И.О. руководителя"]
[]
[null,"Должность руководителя"]
[]
[null,"Местонахождение","Индекс, город, улица, дом, строение, корпус, владение"]
[]
[null,"Почтовый адрес","Индекс, город, улица, дом, строение, корпус, владение"]
[]
[null,"ИНН",null,null,"КПП",null,"ОКПО"]
[]
[null,"р/с",null,null,null,"в"]
[]
[null,"к/с",null,null,null,"БИК"]
[]
[null,"Контактное лицо (Ф.И.О.)"]
[]
[null,"Контактный телефон организации",null,null,null,"Факс"]
[]
[null,"Контактный телефон мобильный",null,null,null,null,"e-mail"]
[]
[null,"2. Местонахождение подключаемого объекта"]
[]
[null,"Город",null,null,null,null,"Район",null,null,null,null,"Необходимо заполнить поля в соответствии с правооустанавливающими документами"]
[]
[null,"Область"]
[]
[null,"Населённый пункт"]
[]
[null,"Улица"]
[]
[null,"Дом",null,null,"Владение",null,"Корпус",null,null,"Строение"]
[]
[null,"3. Технические параметры подключаемого объекта"]
[null,"3.1 Таблица нагрузок по видам потребления ",null,null,null,null,null,null,null,"поле не заполняется",null,"Таблица заполняется одна из двух представленных"]
[null,"(Заполняется одна из двух таблиц)"]
[null,"Для неподключенных строящихся (построенных) объектов:",null,null,null,null,null,null,null,"поле считается автоматически"]
[]
[null,"Наименование","Хозяйственно-бытовые нужды",null,"Производственные нужды","Прочее","Всего"]
[null,"Объем сточных вод, м3/сут",0,null,0,0,{"$f":"C60+E60+F60","v":0}]
[]
[null,"Для реконструируемых объектов:"]
[]
[null,"Наименование","Хозяйственно-бытовые нужды",null,"Производственные нужды","Прочее","Всего"]
[null,"Объем сточных вод существующий, м3/сут",0,null,0,0,{"$f":"C65+E65+F65","v":0}]
[null,"Объем сточных вод после реконструкции, м3/сут",0,null,0,0,{"$f":"C66+E66+F66","v":0},null,null,null,null,"Считается как разница между Тепловая нагрузка после реконструкции и Тепловая нагрузка существующая"]
[null,"Объем сточных вод дополнительный, м3/сут",{"$f":"C66-C65","v":0},null,{"$f":"E66-E65","v":0},{"$f":"F66-F65","v":0},{"$f":"G66-G65","v":0}]
[]
[null,"ВАЖНО: Если в рамках заявки на подключение планируется заключение договора о подключении нескольких объектов капитального строительства, то заявка должна содержать в себе таблицы нагрузок по каждому объекту."]
[]
[null,"3.2 Режимы водопотребления для подключаемого объекта:"]
[]
[null,null,null,null,null,null,null,null,null,null,null,"Необходимо выбрать из выпадающего списка"]
[]
[]
[null,"Если нужного варианта режима в списке нет, укажите собственный вариант"]
[]
[]
[null,"3.3 Расположение узла учета"]
[]
[]
[]
[]
[]
[]
[]
[]
[]
[null,"3.4 Назначение объекта:"]
[]
[null,null,null,null,{"$f":"IF(B91=Списки!B24,Списки!C24,IF(B91=Списки!B25,Списки!C25,IF(B91=Списки!B26,Списки!C26,IF(B91=Списки!B27,Списки!C27,IF(B91=Списки!B28,Списки!C28,IF(B91=Списки!B29,Списки!C29,IF(B91=Списки!B30,Списки!C30,IF(B91=Списки!B31,Списки!C31,IF(B91=Списки!B32,Списки!C32,IF(B91=Списки!B33,Списки!C33,IF(B91=Списки!B34,Списки!C34,IF(B91=Списки!B35,Списки!C35,IF(B91=Списки!B36,Списки!C36,IF(B91=Списки!B37,Списки!C37,IF(B91=Списки!B38,Списки!C38,IF(B91=Списки!B39,Списки!C39,IF(B91=Списки!B40,Списки!C40,IF(B91=Списки!B41,Списки!C41,IF(B91=Списки!B42,Списки!C42,IF(B91=Списки!B43,Списки!C43,IF(B91=Списки!B44,Списки!C44,IF(B91=Списки!B45,Списки!B45,IF(B91=Списки!B46,Списки!C46,IF(B91=Списки!B47,Списки!C47,))))))))))))))))))))))))","v":"-"},null,null,null,null,null,null,"Необходимо выбрать из выпадающего списка"]
[]
[null,"4. Правовые основания пользованием подключаемым объектом или земельным участком, на котором расположен подключаемый объект:"]
[]
[]
[]
[]
[]
[]
[null,"Кдастровый номер:"]
[]
[]
[null,"5. Технические условия (если ранее выдавались)"]
[]
[null,"от","дд.мм.гг",null,null,"№"]
[]
[null,"6. Планируемый срок ввода объекта в эксплуатацию:"]
[]
[null,"мм.гг"]
[]
[null,"7. Информация о границах земельного участка, на котором планируется осуществить строительство / реконструкцию / модернизацию подключаемого объекта"]
[]
[]
[]
[]
[]
[]
[null,"8. Информация о виде разрешенного используемого земельного участка:"]
[]
[]
[]
[]
[]
[null,"9. Информация о предельных параметрах разрешенного строительства / реконструкции / модернизации подключаемого объекта:"]
[]
[]
[]
[]
[]
[]
[]
[null,"10. О готовности проекта договора о подключении к системам водоснабжения прошу уведомить меня:",null,null,null,null,null,null,null,null,null,"Необходимо выбрать нужный вариант"]
[]
[null,"по телефону:"]
[]
[null,"по электронной почте по адресу:"]
[]
[null,null,"В случае если Заявитель будет недоступен по вышеуказанному контакту, Договор о подключении к системе водоотведения ООО \"ТСК Мосэнерго\" будет отправлен почтой по адресу, указанному в Разделе 1 настоящего Запроса"]
[]
[]
[null,null,"Перечень необходимых документов для выдачи Технических условий подключения:"]
[null,1,"Заверенные копии учредительных документов:"]
[null,"-","свидетельство о государственной регистрации физического лица в качестве индивидуального предпринимателя;"]
[null,"-","свидетельство о постановке на учет в налоговом органе индивидуального предпринимателя;"]
[null,"-","выписка из единого государственного реестра индивидуальных предпринимателей (далее – ЕГРИП). Дата выдачи выписки из ЕГРИП не должна превышать 30 дней на дату представления;"]
[null,2,"Доверенность представителя контрагента на право подписания запроса (в случае подписания запроса лицом, действующим на основании доверенности)."]
[null,3,"Правоустанавливающие документы на земельный участок (для правообладателя земельного участка)."]
[null,4,"Информация о границах земельного участка, на котором планируется осуществить строительство объекта капитального строительства или на котором расположен реконструируемый объект капитального строительства."]
[null,5,"Баланс водопотребления и водоотведения подключаемого объекта с указанием целей использования холодной воды и распределением объемов подключаемой нагрузки по целям использования, в том числе на пожаротушение, периодические нужды, заполнение и опорожнение бассейнов, прием поверхностных сточных вод."]
[null,6,"Сведения о составе и свойствах сточных вод, намеченных к отведению в централизованную систему водоотведения."]
[null,7,"Информация о разрешенном использовании земельного участка (градостроительный план земельного участка)."]
[null,8,"Информация о предельных параметрах разрешенного строительства (реконструкции) объектов капитального строительства, соответствующих данному земельному участку."]
[null,9,"Информация о планируемой величине необходимой подключаемой нагрузки (при наличии соответствующей информации). "]
[null,10,"Информация о планируемых сроках ввода в эксплуатацию объекта капитального строительства (при наличии соответствующей информации)."]
[null,11,"При наличии: топографическая карта земельного участка в масштабе 1:500 (для квартальной застройки 1:2000) в электронном виде в формате PDF с указанием всех наземных и подземных коммуникаций и сооружений."]
[]
[]
[]
[]
[]
[]
[null,"Заявитель",null,null,null,null,null,null,null,"дд.мм.гг"]
[null,null,"ФИО",null,null,null,"Подпись",null,null,"Дата"]
[null,"М.П."]

{"sheet":"Заявка на договор ТП физлицо","index":3,"n_rows":164,"n_cols":12,"rows_kept":164,"cut":false,"hidden":false,"merged":[[160,2,160,9],[161,9,161,10],[162,2,162,3],[63,2,63,3],[63,6,63,7],[63,9,63,10],[68,1,68,10],[72,1,74,10],[80,1,85,10],[87,1,87,3],[87,9,87,10],[90,1,90,2],[90,4,90,10],[151,2,151,9],[152,2,152,9],[153,2,153,9],[155,2,155,9],[156,2,156,9],[157,2,157,9],[162,9,162,10],[94,1,97,10],[158,2,158,9],[154,2,154,9],[137,2,137,9],[141,2,141,9],[145,2,145,9],[146,2,146,9],[147,2,147,9],[148,2,148,9],[149,2,149,9],[150,2,150,9],[142,2,142,9],[143,2,143,9],[144,2,144,9],[131,1,131,10],[133,2,133,9],[135,2,135,9],[92,1,92,10],[64,2,64,3],[64,6,64,7],[64,9,64,10],[65,2,65,3],[65,6,65,7],[65,9,65,10],[66,2,66,3],[66,6,66,7],[66,9,66,10],[99,2,99,10],[104,2,104,3],[104,6,104,8],[108,1,108,2],[110,1,110,10],[112,1,115,10],[119,1,121,10],[123,1,123,10],[125,1,129,10],[54,9,54,10],[56,9,56,10],[58,2,58,3],[58,6,58,7],[58,9,58,10],[59,2,59,3],[59,6,59,7],[59,9,59,10],[19,2,19,7],[20,9,20,10],[21,2,21,3],[21,5,21,6],[21,9,21,10],[22,9,22,10],[47,2,47,10],[49,2,49,10],[53,1,53,10],[45,2,45,10],[15,11,17,11],[17,2,17,10],[18,0,39,0],[18,2,18,4],[18,6,18,10],[18,11,39,11],[32,2,32,4],[32,6,32,10],[37,2,37,4],[39,2,39,4],[39,7,39,10],[23,2,23,10],[24,9,24,10],[25,2,25,10],[28,2,28,3],[28,7,28,8],[30,2,30,4],[30,6,30,10],[10,1,10,10],[12,1,13,1],[12,2,13,2],[12,4,13,5],[12,6,13,6],[12,7,13,9],[43,2,43,5],[43,7,43,10],[1,8,1,10],[3,1,3,10],[4,1,4,10],[6,1,6,10],[8,1,8,10],[9,1,9,10],[15,1,15,10]]}
[]
[null,null,null,null,null,null,null,null,"Генеральному директору\nООО \"ТСК Мосэнерго\" \nД.В. Горяинову",null,null,"Комментарии для заполнения:"]
[]
[null,"ЗАЯВКА НА ПОДКЛЮЧЕНИЕ К СИСТЕМЕ ВОДООТВЕДЕНИЯ ООО \"ТСК МОСЭНЕРГО\""]
[null,"(для физического лица)"]
[]
[null,"Уважаемый Денис Викторович!"]
[]
[null,"Прошу Вас заключить договор о подключении к системе водоотведения ООО \"ТСК Мосэнерго\" объекта капитального строительства: "]
[]
[null,"(наименование объекта)"]
[null,"в связи с:"]
[null,"необходимостью подключения нового объекта",null,null,"увеличением нагрузки  подключаемого объекта",null,null,"реконструкцией или модернизацией объекта без увеличения нагрузки",null,null,null,"Необходимо выбрать нужный вариант"]
[]
[]
[null,"1. Сведения о заявителе:"]
[]
[null,"ФИО"]
[]
[null,"Наименование документа, \nудостоверяюшего личность"]
[]
[null,"Серия",null,null,"№",null,null,null,"Дата выдачи","дд.мм.гг"]
[]
[null,"Местонахождение","Индекс, город, улица, дом, строение, корпус, владение"]
[]
[null,"Почтовый адрес","Индекс, город, улица, дом, строение, корпус, владение"]
[]
[]
[null,"ИНН",null,null,"КПП",null,"ОКПО"]
[]
[null,"р/с",null,null,null,"в"]
[]
[null,"к/с",null,null,null,"БИК"]
[]
[null,"Контактное лицо (Ф.И.О.)"]
[null,"Контактное лицо (Ф.И.О.)"]
[]
[null,"Контактный телефон организации",null,null,null,"Факс"]
[]
[null,"Контактный телефон мобильный",null,null,null,null,"e-mail"]
[]
[null,"2. Местонахождение подключаемого объекта"]
[]
[null,"Город",null,null,null,null,"Район",null,null,null,null,"Необходимо заполнить поля в соответствии с правооустанавливающими документами"]
[]
[null,"Область"]
[]
[null,"Населённый пункт"]
[]
[null,"Улица"]
[]
[null,"Дом",null,null,"Владение",null,"Корпус",null,null,"Строение"]
[]
[null,"3. Технические параметры подключаемого объекта"]
[null,"3.1 Таблица нагрузок по видам потребления ",null,null,null,null,null,null,null,"поле не заполняется",null,"Таблица заполняется одна из двух представленных"]
[null,"(Заполняется одна из двух таблиц)"]
[null,"Для неподключенных строящихся (построенных) объектов:",null,null,null,null,null,null,null,"поле считается автоматически"]
[]
[null,"Наименование","Хозяйственно-бытовые нужды",null,"Производственные нужды","Прочее","Всего"]
[null,"Объем сточных вод, м3/сут",0,null,0,0,{"$f":"C60+E60+F60","v":0}]
[]
[null,"Для реконструируемых объектов:"]
[]
[null,"Наименование","Хозяйственно-бытовые нужды",null,"Производственные нужды","Прочее","Всего"]
[null,"Объем сточных вод существующий, м3/сут",0,null,0,0,{"$f":"C65+E65+F65","v":0}]
[null,"Объем сточных вод после реконструкции, м3/сут",0,null,0,0,{"$f":"C66+E66+F66","v":0},null,null,null,null,"Считается как разница между Тепловая нагрузка после реконструкции и Тепловая нагрузка существующая"]
[null,"Объем сточных вод дополнительный, м3/сут",{"$f":"C66-C65","v":0},null,{"$f":"E66-E65","v":0},{"$f":"F66-F65","v":0},{"$f":"G66-G65","v":0}]
[]
[null,"ВАЖНО: Если в рамках заявки на подключение планируется заключение договора о подключении нескольких объектов капитального строительства, то заявка должна содержать в себе таблицы нагрузок по каждому объекту."]
[]
[null,"3.2 Режимы водопотребления для подключаемого объекта:"]
[]
[null,null,null,null,null,null,null,null,null,null,null,"Необходимо выбрать из выпадающего списка"]
[]
[]
[null,"Если нужного варианта режима в списке нет, укажите собственный вариант"]
[]
[]
[null,"3.3 Расположение узла учета"]
[]
[]
[]
[]
[]
[]
[]
[]
[]
[null,"3.4 Назначение объекта:"]
[]
[null,null,null,null,{"$f":"IF(B91=Списки!B24,Списки!C24,IF(B91=Списки!B25,Списки!C25,IF(B91=Списки!B26,Списки!C26,IF(B91=Списки!B27,Списки!C27,IF(B91=Списки!B28,Списки!C28,IF(B91=Списки!B29,Списки!C29,IF(B91=Списки!B30,Списки!C30,IF(B91=Списки!B31,Списки!C31,IF(B91=Списки!B32,Списки!C32,IF(B91=Списки!B33,Списки!C33,IF(B91=Списки!B34,Списки!C34,IF(B91=Списки!B35,Списки!C35,IF(B91=Списки!B36,Списки!C36,IF(B91=Списки!B37,Списки!C37,IF(B91=Списки!B38,Списки!C38,IF(B91=Списки!B39,Списки!C39,IF(B91=Списки!B40,Списки!C40,IF(B91=Списки!B41,Списки!C41,IF(B91=Списки!B42,Списки!C42,IF(B91=Списки!B43,Списки!C43,IF(B91=Списки!B44,Списки!C44,IF(B91=Списки!B45,Списки!B45,IF(B91=Списки!B46,Списки!C46,IF(B91=Списки!B47,Списки!C47,))))))))))))))))))))))))","v":"-"},null,null,null,null,null,null,"Необходимо выбрать из выпадающего списка"]
[]
[null,"4. Правовые основания пользованием подключаемым объектом или земельным участком, на котором расположен подключаемый объект:"]
[]
[]
[]
[]
[]
[]
[null,"Кдастровый номер:"]
[]
[]
[null,"5. Технические условия (если ранее выдавались)"]
[]
[null,"от","дд.мм.гг",null,null,"№"]
[]
[null,"6. Планируемый срок ввода объекта в эксплуатацию:"]
[]
[null,"мм.гг"]
[]
[null,"7. Информация о границах земельного участка, на котором планируется осуществить строительство / реконструкцию / модернизацию подключаемого объекта"]
[]
[]
[]
[]
[]
[]
[null,"8. Информация о виде разрешенного используемого земельного участка:"]
[]
[]
[]
[]
[]
[null,"9. Информация о предельных параметрах разрешенного строительства / реконструкции / модернизации подключаемого объекта:"]
[]
[]
[]
[]
[]
[]
[]
[null,"10. О готовности проекта договора о подключении к системам водоснабжения прошу уведомить меня:",null,null,null,null,null,null,null,null,null,"Необходимо выбрать нужный вариант"]
[]
[null,"по телефону:"]
[]
[null,"по электронной почте по адресу:"]
[]
[null,null,"В случае если Заявитель будет недоступен по вышеуказанному контакту, Договор о подключении к системе водоотведения ООО \"ТСК Мосэнерго\" будет отправлен почтой по адресу, указанному в Разделе 1 настоящего Запроса"]
[]
[]
[null,null,"Перечень необходимых документов для выдачи Технических условий подключения:"]
[null,1,"Заверенная копия паспорта"]
[null,2,"Доверенность представителя контрагента на право подписания запроса (в случае подписания запроса лицом, действующим на основании доверенности)."]
[null,3,"Правоустанавливающие документы на земельный участок (для правообладателя земельного участка)."]
[null,4,"Информация о границах земельного участка, на котором планируется осуществить строительство объекта капитального строительства или на котором расположен реконструируемый объект капитального строительства."]
[null,5,"Баланс водопотребления и водоотведения подключаемого объекта с указанием целей использования холодной воды и распределением объемов подключаемой нагрузки по целям использования, в том числе на пожаротушение, периодические нужды, заполнение и опорожнение бассейнов, прием поверхностных сточных вод."]
[null,6,"Сведения о составе и свойствах сточных вод, намеченных к отведению в централизованную систему водоотведения."]
[null,7,"Информация о разрешенном использовании земельного участка (градостроительный план земельного участка)."]
[null,8,"Информация о предельных параметрах разрешенного строительства (реконструкции) объектов капитального строительства, соответствующих данному земельному участку."]
[null,9,"Информация о планируемой величине необходимой подключаемой нагрузки (при наличии соответствующей информации). "]
[null,10,"Информация о планируемых сроках ввода в эксплуатацию объекта капитального строительства (при наличии соответствующей информации)."]
[null,11,"При наличии: топографическая карта земельного участка в масштабе 1:500 (для квартальной застройки 1:2000) в электронном виде в формате PDF с указанием всех наземных и подземных коммуникаций и сооружений (не прилагается в случае, если заявителем является физическое лицо, осуществляющее создание (реконструкцию) объекта индивидуального жилищного строительства)."]
[]
[]
[]
[]
[]
[]
[]
[]
[]
[null,"Заявитель",null,null,null,null,null,null,null,"дд.мм.гг"]
[null,null,"ФИО",null,null,null,"Подпись",null,null,"Дата"]
[null,"М.П."]

{"sheet":"Списки","index":4,"n_rows":73,"n_cols":3,"rows_kept":73,"cut":false,"hidden":true,"merged":[]}
[]
[null,"Схема подключения"]
[]
[null,"Зависимая"]
[null,"Независимая"]
[]
[null,"Округ"]
[]
[null,"ЦАО"]
[null,"САО"]
[null,"СВАО"]
[null,"ВАО"]
[null,"ЮВАО"]
[null,"ЮАО"]
[null,"ЮЗАО"]
[null,"ЗАО"]
[null,"СЗАО"]
[null,"Новомосковский АО"]
[null,"Троицкий АО"]
[null,"Зеленоградский АО"]
[]
[null,"Назначение объекта"]
[]
["№","Категория","Комментарий"]
[null,null,"-"]
[1,"Жилые дома","Жилые дома"]
[2,"Общественные и административно-бытовые помещения","Гостиницы, общежития, пансионаты, д/о, мотели"]
[3,"ДОУ","Детсады, ясли"]
[4,"Объекты спортивного назначения","Стадионы, ФОК, бассейны, спортзалы, спортшколы"]
[5,"Здравоохранение","Больницы, родильные дома, поликлиники, амбулатории, госпитали, морги"]
[6,"Образование","Школы, интернаты, дом ребенка, ПТУ, училища, Вузы, амбулатории"]
[7,"Административно-офисные помещения","МФК, офисы, деловые центры, типографии, почта"]
[8,"Социально-бытовые объекты","Прачечные, химчистки, душевые, бани,парикмахерские, общественные туалеты"]
[9,"Объекты торгового назначения","Магазин, торговые центры, торговые залы, аптеки, вещевой рынок, ларьки, торговые палатки"]
[10,"Досугово-развлекательные учреждения","Дом культуры, интернет-кафе, дискотеки, клубы"]
[11,"Культурные объекты","Театры, кинотеатры, музеи, постоянно действующие выставочные комплексы (центры)"]
[12,"Предприятия общественного питания","Столовые, кафе, рестораны, пиццерии, хлебопекарня"]
[13,"Объекты производственного назначения","Заводы, цеха, станции, тепловые пункты, депо, гаражи,ремонтно-механические мастерские, склады, АЗС,СТО"]
[14,"Объекты городской инфраструктуры","Вокзалы, парки, оранжереи, теплицы, сельхоз.рынки"]
[15,"Транспортная инфраструктура","Дороги, эстакады, мосты, тоннели, путепроводы, жел.дор.пути"]
[16,"Религиозные сооружения","Храм, церковь, синагога, мечеть, монастырь, часовня, кирха"]
[17,"Объекты защиты населения","Полиция, мчс, военные, ГИБДД, вневедомственная охрана, ЧОПы, военная полиция"]
[18,"Объекты складского назначения","Склады, навесы, ангары, сараи"]
[19,"Нежилые помещения","Объекты заявлены как нежилые помещение без уточнения дальнейшего назначения"]
[20,"Комплексная застройка","Большая застройка, куда попадают  объекты из разных категорий"]
[21,"Временные объекты","бытовки, строительные городки, объекты механизации"]
[22,"Объекты незавершенного строительства","незавершенные объекты для проведения отделочных и пуско-наладочных работ"]
[23,"Прочее","Все, что не попало в категории выше"]
[]
[null,"Отделения сбыта"]
[]
[null,"Отделение сбыта №1 - г. Москва, ул. Складочная, д. 1А, стр. 1"]
[null,"Отделение сбыта №2 - г. Москва, ул. Бибиревская, д. 8 кор. 1"]
[null,"Отделение сбыта №3 - г. Москва, ул. Шарикоподшипниковская, д.1"]
[null,"Отделение сбыта №4 - г.Москва, пр. Андропова, д. 36 к. 2"]
[null,"Отделение сбыта №5 - г.Москва, ул.Героев Панфиловцев, д.10, к. 1"]
[null,"Отделение сбыта №6 - г.Зеленоград, корп. 1111А"]
[null,"Отделение сбыта №7 - г.Московский, 3 мкр., д.2а"]
[]
[]
[null,"Режим теплопотрбления"]
[]
[null,"непрерывный"]
[null,"односменный"]
[null,"двухсменный"]
[null,"сезонный"]
[]
[]
[null,"Требования к надежности"]
[]
[null,"1 категория - потребители, не допускающие перерывов в подаче расчетного количества теплоты и снижения температуры воздуха в помещениях ниже расчетных"]
[null,"2 категория - потребители, допускающие снижение температуры в отапливаемых помещениях на период ликвидации аварии, но не более 54 ч: \n-        жилых и общественных зданий до 12 °С; \n-        промышленных зданий до 8 °С  "]
[null,"3 категория - остальные потребители"]